fUSD/lending_fUSD_20250112
["ID","MTS","AMOUNT","RATE_DAILY","PERIOD"]
[348683432,1736713849083,-1112.86,0.000109,2]
[348683433,1736713849092,-69231.99692347,0.000109,2]
[348683434,1736713849101,-150.0,0.00010941,2]
[348683435,1736713849110,-300.0,0.00010941,2]
[348683436,1736713849119,-1142.0,0.00010954,2]
[348683437,1736713849128,-150.0,0.00010957,2]
[348683438,1736713849137,-150.0,0.00010959,2]
[348683439,1736713849146,-4000.0,0.00010959,2]
[348683440,1736713849155,-166.73794238,0.00010972,2]
[348683441,1736713849164,-433.0,0.00010975,2]
[348683442,1736713849173,-150.0,0.00010977,2]
[348683443,1736713849182,-479.33656656,0.00010986,2]
[348683444,1736713849192,-1000.0,0.00010999,2]
[348683445,1736713849202,-666.0,0.00010999,2]
[348683446,1736713849211,-200.0,0.00011,2]
[348683447,1736713849220,-550.0,0.00011,2]
[348683448,1736713849230,-885941.60939357,0.00011,2]
[348683449,1736713849239,-1583.0,0.00011,2]
[348683450,1736713849248,-1381.03,0.00011001,2]
[348683451,1736713849257,-956.86,0.00011001,2]
[348683452,1736713849266,-1738.31,0.00011001,2]
[348683453,1736713849275,-1291.45,0.00011001,2]
[348683454,1736713849285,-3163.06,0.00011001,2]
[348683455,1736713849294,-2000.0,0.00011002,2]
[348683456,1736713849303,-200.0,0.00011002,2]
[348683457,1736713849311,-3000.0,0.00011002,2]
[348683458,1736713849320,-876.24,0.00011003,2]
[348683459,1736713849331,-868.53,0.00011003,2]
[348683460,1736713849340,-500.0,0.00011003,2]
[348683461,1736713849350,-945.26,0.00011003,2]
[348683462,1736713849359,-941.5,0.00011003,2]
[348683463,1736713849368,-906.18,0.00011004,2]
[348683464,1736713849378,-555.86,0.00011004,2]
[348683465,1736713849387,-547.36,0.00011004,2]
[348683466,1736713849396,-1050.11,0.00011004,2]
[348683467,1736713849406,-882.15,0.00011004,2]
[348683468,1736713849416,-876.67,0.00011004,2]
[348683469,1736713849425,-1517.87,0.00011004,2]
[348683470,1736713849434,-2072.38,0.00011004,2]
[348683471,1736713849443,-703.95,0.00011004,2]
[348683472,1736713849452,-625.71,0.00011004,2]
[348683473,1736713849462,-744.17,0.00011004,2]
[348683474,1736713849471,-1776.07,0.00011005,2]
[348683475,1736713849480,-1058.0,0.00011005,2]
[348683476,1736713849490,-1256.28,0.00011005,2]
[348683477,1736713849499,-717.08,0.00011005,2]
[348683478,1736713849509,-1000.0,0.00011005,2]
[348683479,1736713849518,-971.33,0.00011005,2]
[348683480,1736713849528,-500.0,0.00011005,2]
[348683481,1736713849538,-1489.87,0.00011005,2]
[348683482,1736713849548,-500.0,0.00011025,2]
[348683483,1736713849557,-500.0,0.00011025,2]
[348683484,1736713849567,-500.0,0.00011025,2]
[348683485,1736713849576,-500.0,0.00011025,2]
[348683486,1736713849586,-500.0,0.00011025,2]
[348683487,1736713849595,-445.536,0.00011025,2]
[348683488,1736713849605,-554.1521,0.00011025,2]
[348683489,1736713849614,-150.0,0.00011031,2]
[348683490,1736713849624,-3519.0,0.00011041,2]
[348683491,1736713849634,-7202.0,0.00011041,2]
[348683492,1736713849643,-530.33755639,0.0001105,2]
[348683493,1736713849652,-153.507976,0.0001107,2]
[348683494,1736713849662,-9003.1934359,0.00011072,2]
[348683495,1736713849671,-14337.7099454,0.00011072,2]
[348683496,1736713849679,-385.1207901,0.00011072,2]
[348683497,1736713849689,-181.39186706,0.00011079,2]
[348683498,1736713849698,-666.0,0.00011079,2]
[348683499,1736713849707,-639.03191514,0.00011079,3]
[348683500,1736713849716,-1059.16,0.00011079,2]
[348683501,1736713849726,-500.0,0.00011079,2]
[348683502,1736713849735,-999.0,0.00011079,2]
[348683503,1736713849744,-889.37,0.00011079,2]
[348683504,1736713849756,-500.0,0.00011079,2]
[348683505,1736713849765,-597.13,0.00011079,2]
[348683506,1736713849774,-1039.68,0.00011079,2]
[348683507,1736713849786,-1309.62,0.00011079,2]
[348683508,1736713849799,-876.24,0.00011079,2]
[348683509,1736713849809,-876.24,0.00011079,2]
[348683510,1736713849819,-876.24,0.00011079,2]
[348683511,1736713849829,-876.24,0.00011079,2]
[348683512,1736713849838,-876.24,0.00011079,2]
[348683513,1736713849847,-876.24,0.00011079,2]
[348683514,1736713849858,-876.24,0.00011079,2]
[348683515,1736713849868,-876.24,0.00011079,2]
[348683516,1736713849879,-876.24,0.00011079,2]
[348683517,1736713849889,-876.24,0.00011079,2]
[348683518,1736713849901,-1410.65,0.00011079,2]
[348683519,1736713849911,-2072.38,0.00011079,2]
[348683520,1736713849921,-703.95,0.00011079,2]
[348683521,1736713849931,-723.55,0.00011079,2]
[348683522,1736713849941,-776.53,0.00011079,2]
[348683523,1736713849950,-257563.70127006,0.0001108,2]
[348683524,1736713850480,-1000.0,9.896e-05,2]
[348683525,1736713850490,-2140.15000001,0.0001108,2]
[348683526,1736713850518,-80591.51499972,0.0001108,2]
[348683527,1736713850532,-3267.93678993,0.0001108,2]
[348683528,1736713850543,-2884.75111555,0.0001108,2]
[348683529,1736713850559,-3659.53069064,0.0001108,2]
[348683530,1736713850570,-2371.40758572,0.0001108,2]
[348683531,1736713850602,-324.39721064,9.999e-05,2]
[348683532,1736713850612,-3206.14,0.00011001,2]
[348683533,1736713850623,-255.94278936,0.0001108,2]
[348683534,1736713851071,-238.81,9.999e-05,2]
[348683535,1736713851081,-9246.09,0.0001108,2]
[348683536,1736713851306,-9035.98440227,0.0001108,2]
[348683537,1736713851358,-436.7,9.814e-05,2]
[348683538,1736713851368,-500.0,9.999e-05,2]
[348683539,1736713851377,-599936.51950423,0.0001108,2]
[348683540,1736713852097,-195.67,0.00010273,2]
[348683541,1736713852107,-2762.36848622,0.0001108,2]
[348683542,1736713852119,-7055.06260068,0.0001108,2]
[348683544,1736714182632,390.69,0.000123,31]
[348683545,1736714182690,390.69,0.000123,31]
[348683546,1736714182748,390.69,0.000123,31]
[348683547,1736714182820,390.69,0.000123,31]
[348683548,1736714182882,390.69,0.000123,31]
[348683549,1736714182950,390.69,0.000123,31]
[348683550,1736714183008,390.69,0.000123,31]
[348683551,1736714183135,390.69,0.000123,31]
[348683552,1736714183192,390.69,0.000123,31]
[348683553,1736714183238,390.69,0.000123,31]
[348683554,1736714183283,390.69,0.000123,31]
[348683555,1736714183329,390.69,0.000123,31]
[348683556,1736714183377,390.69,0.000123,31]
[348683557,1736714183425,390.69,0.000123,31]
[348683558,1736714183480,390.69,0.000123,31]
[348683559,1736714183542,390.69,0.000123,31]
[348683560,1736714250352,150.0,8.9e-05,2]
[348683561,1736714250609,150.0,8.647e-05,2]
[348683562,1736714250675,150.0,8.574e-05,2]
[348683563,1736714296903,250.0,8.961e-05,2]
[348683564,1736714455788,159.14102332,0.0002,120]
[348683565,1736714467391,665.34,8.828e-05,2]
[348683566,1736714486283,821.51,8.219e-05,2]
[348683567,1736714520436,656.02,8.815e-05,2]
[348683568,1736714628367,166.39,8.771e-05,2]
[348683569,1736714794617,328.21,0.000123,31]
[348683570,1736714794678,328.21,0.000123,31]
[348683571,1736714794730,328.21,0.000123,31]
[348683572,1736714794794,328.21,0.000123,31]
[348683573,1736714795370,328.21,0.000123,31]
[348683574,1736714795426,328.21,0.000123,31]
[348683575,1736714795481,328.21,0.000123,31]
[348683576,1736714795532,328.21,0.000123,31]
[348683577,1736714795584,328.21,0.000123,31]
[348683578,1736714795627,328.21,0.000123,31]
[348683579,1736714795688,328.21,0.000123,31]
[348683580,1736714795731,328.21,0.000123,31]
[348683581,1736714795778,328.21,0.000123,31]
[348683582,1736714795830,328.21,0.000123,31]
[348683583,1736714795872,328.21,0.000123,31]
[348683584,1736714796015,328.21,0.000123,31]
[348683592,1736715031508,-300.0,9.042e-05,2]
[348683593,1736715031518,-99.0,9.043e-05,2]
[348683594,1736715031619,-338.4,9.043e-05,2]
[348683595,1736715031629,-1241.31577093,9.043e-05,2]
[348683596,1736715031641,-398.40411684,9.043e-05,2]
[348683597,1736715031652,-24025.2639106,9.043e-05,2]
[348683598,1736715031782,-4697.76641806,9.043e-05,2]
[348683599,1736715031946,-2927.24978357,9.043e-05,2]
[348683601,1736715031955,-250.0,9.254e-05,2]
[348683603,1736715031964,-2086.54687052,9.31e-05,2]
[348683605,1736715031976,-4660.24358885,9.31e-05,2]
[348683607,1736715031987,-1782.0775131,9.31e-05,2]
[348683609,1736715031996,-2650.86,9.31e-05,2]
[348683610,1736715032005,-1000.0,9.354e-05,2]
[348683612,1736715032014,-620.31,9.502e-05,2]
[348683614,1736715032024,-1363.96648909,9.7e-05,2]
[348683813,1736715037420,-346.81285539,9.254e-05,2]
[348683814,1736715037430,-35.25371091,9.7e-05,2]
[348683815,1736715037442,-499.55482685,9.773e-05,2]
[348683816,1736715037455,-500.0,9.773e-05,2]
[348683817,1736715037464,-150.0,9.798e-05,2]
[348683818,1736715037473,-527.04,9.799e-05,2]
[348683819,1736715037482,-783.54,9.799e-05,2]
[348683820,1736715037492,-564.52,9.799e-05,2]
[348683821,1736715037501,-573.17,9.799e-05,2]
[348683822,1736715037511,-500.0,9.799e-05,2]
[348683823,1736715037521,-500.0,9.799e-05,2]
[348683824,1736715037530,-500.0,9.799e-05,2]
[348683825,1736715037539,-500.0,9.799e-05,2]
[348683826,1736715037550,-500.0,9.799e-05,2]
[348683827,1736715037559,-500.0,9.799e-05,2]
[348683828,1736715037568,-500.0,9.799e-05,2]
[348683829,1736715037577,-554.58,9.799e-05,2]
[348683830,1736715037586,-543.31,9.799e-05,2]
[348683831,1736715037596,-228.87880732,9.799e-05,2]
[348683832,1736715037605,-500.0,9.799e-05,2]
[348683833,1736715037615,-500.0,9.799e-05,2]
[348683834,1736715037626,-338.1664918,9.799e-05,2]
[348683835,1736715037659,-161.8335082,9.799e-05,2]
[348683836,1736715037668,-627.06,9.799e-05,2]
[348683837,1736715037677,-500.0,9.799e-05,2]
[348683838,1736715037686,-603.45,9.799e-05,2]
[348683839,1736715037695,-622.72,9.799e-05,2]
[348683840,1736715037703,-500.0,9.799e-05,2]
[348683841,1736715037713,-500.0,9.799e-05,2]
[348683842,1736715037722,-500.0,9.799e-05,2]
[348683843,1736715037731,-693.7,9.799e-05,2]
[348683844,1736715037740,-553.34,9.799e-05,2]
[348683845,1736715037750,-500.0,9.799e-05,2]
[348683846,1736715037759,-620.37,9.799e-05,2]
[348683847,1736715037767,-500.16,9.799e-05,2]
[348683848,1736715037777,-500.0,9.799e-05,2]
[348683849,1736715037786,-500.0,9.799e-05,2]
[348683850,1736715037794,-500.0,9.799e-05,2]
[348683851,1736715037804,-500.0,9.799e-05,2]
[348683852,1736715037813,-500.0,9.799e-05,2]
[348683853,1736715037822,-500.0,9.799e-05,2]
[348683854,1736715037831,-500.0,9.799e-05,2]
[348683855,1736715037840,-500.0,9.799e-05,2]
[348683856,1736715037849,-500.0,9.799e-05,2]
[348683857,1736715037858,-610.19,9.799e-05,2]
[348683858,1736715037867,-500.0,9.799e-05,2]
[348683859,1736715037877,-500.0,9.799e-05,2]
[348683860,1736715037886,-500.0,9.799e-05,2]
[348683861,1736715037895,-584.09,9.799e-05,2]
[348683862,1736715037904,-500.0,9.799e-05,2]
[348683863,1736715037914,-500.0,9.799e-05,2]
[348683864,1736715037923,-500.0,9.799e-05,2]
[348683865,1736715037932,-500.0,9.799e-05,2]
[348683866,1736715037941,-500.0,9.799e-05,2]
[348683867,1736715037950,-500.0,9.799e-05,2]
[348683868,1736715037959,-500.0,9.799e-05,2]
[348683869,1736715037968,-500.0,9.799e-05,2]
[348683870,1736715037977,-500.0,9.799e-05,2]
[348683871,1736715037987,-500.0,9.799e-05,2]
[348683872,1736715037995,-500.0,9.799e-05,2]
[348683873,1736715038004,-500.0,9.799e-05,2]
[348683874,1736715038014,-500.0,9.799e-05,2]
[348683875,1736715038023,-500.0,9.799e-05,2]
[348683876,1736715038031,-500.0,9.799e-05,2]
[348683877,1736715038040,-500.0,9.799e-05,2]
[348683878,1736715038049,-497.67598063,9.799e-05,2]
[348683879,1736715038058,-500.0,9.799e-05,2]
[348683880,1736715038067,-500.0,9.799e-05,2]
[348683881,1736715038077,-500.0,9.799e-05,2]
[348683882,1736715038085,-500.0,9.799e-05,2]
[348683883,1736715038094,-500.0,9.799e-05,2]
[348683884,1736715038103,-500.0,9.799e-05,2]
[348683885,1736715038113,-500.0,9.799e-05,2]
[348683886,1736715038122,-500.0,9.799e-05,2]
[348683887,1736715038131,-500.0,9.799e-05,2]
[348683888,1736715038140,-500.0,9.799e-05,2]
[348683889,1736715038149,-500.0,9.799e-05,2]
[348683890,1736715038158,-500.0,9.799e-05,2]
[348683891,1736715038167,-500.0,9.799e-05,2]
[348683892,1736715038175,-500.0,9.799e-05,2]
[348683893,1736715038184,-500.0,9.799e-05,2]
[348683894,1736715038193,-500.0,9.799e-05,2]
[348683895,1736715038202,-1503.89,9.799e-05,2]
[348683896,1736715038212,-500.0,9.799e-05,2]
[348683897,1736715038221,-500.0,9.799e-05,2]
[348683898,1736715038230,-558.51,9.799e-05,2]
[348683899,1736715038239,-500.0,9.799e-05,2]
[348683900,1736715038248,-500.0,9.799e-05,2]
[348683901,1736715038257,-4582.39,9.799e-05,2]
[348683902,1736715038266,-500.0,9.799e-05,2]
[348683903,1736715038275,-500.0,9.799e-05,2]
[348683904,1736715038284,-500.0,9.799e-05,2]
[348683905,1736715038293,-500.0,9.799e-05,2]
[348683906,1736715038302,-500.0,9.799e-05,2]
[348683907,1736715038311,-500.0,9.799e-05,2]
[348683908,1736715038319,-500.0,9.799e-05,2]
[348683909,1736715038329,-500.0,9.799e-05,2]
[348683910,1736715038338,-469.88304412,9.799e-05,2]
[348683911,1736715038347,-500.0,9.799e-05,2]
[348683912,1736715038355,-500.0,9.799e-05,2]
[348683913,1736715038364,-559.89,9.799e-05,2]
[348683914,1736715038373,-583.02,9.799e-05,2]
[348683915,1736715038382,-500.0,9.799e-05,2]
[348683916,1736715038390,-500.0,9.799e-05,2]
[348683917,1736715038399,-500.0,9.799e-05,2]
[348683918,1736715038408,-500.0,9.799e-05,2]
[348683919,1736715038417,-613.85,9.799e-05,2]
[348683920,1736715038426,-183.52735591,9.799e-05,2]
[348683921,1736715038435,-500.0,9.799e-05,2]
[348683922,1736715038448,-523.64,9.799e-05,2]
[348683923,1736715038457,-500.0,9.799e-05,2]
[348683924,1736715038466,-764.78,9.799e-05,2]
[348683925,1736715038475,-251.96912119,9.799e-05,2]
[348683926,1736715038485,-500.0,9.799e-05,2]
[348683927,1736715038494,-500.0,9.799e-05,2]
[348683928,1736715038503,-500.0,9.799e-05,2]
[348683929,1736715038512,-500.0,9.799e-05,2]
[348683930,1736715038523,-500.0,9.799e-05,2]
[348683931,1736715038533,-728.66,9.799e-05,2]
[348683932,1736715038542,-500.0,9.799e-05,2]
[348683933,1736715038551,-500.0,9.799e-05,2]
[348683934,1736715038560,-500.0,9.799e-05,2]
[348683935,1736715038569,-500.0,9.799e-05,2]
[348683936,1736715038578,-722.98,9.799e-05,2]
[348683937,1736715038587,-500.0,9.799e-05,2]
[348683938,1736715038597,-500.0,9.799e-05,2]
[348683939,1736715038607,-500.0,9.799e-05,2]
[348683940,1736715038616,-500.0,9.799e-05,2]
[348683941,1736715038625,-500.0,9.799e-05,2]
[348683942,1736715038634,-694.33,9.799e-05,2]
[348683943,1736715038644,-1360.15,9.799e-05,2]
[348683944,1736715038654,-3184.78,9.799e-05,2]
[348683945,1736715038665,-500.0,9.799e-05,2]
[348683946,1736715038674,-500.0,9.799e-05,2]
[348683947,1736715038683,-500.0,9.799e-05,2]
[348683948,1736715038692,-500.0,9.799e-05,2]
[348683949,1736715038701,-500.0,9.799e-05,2]
[348683950,1736715038709,-500.0,9.799e-05,2]
[348683951,1736715038718,-500.0,9.799e-05,2]
[348683952,1736715038727,-500.0,9.799e-05,2]
[348683953,1736715038736,-1819.79,9.799e-05,2]
[348683954,1736715038746,-3391.26,9.799e-05,2]
[348683955,1736715038754,-500.0,9.799e-05,2]
[348683956,1736715038765,-2168.88,9.799e-05,2]
[348683957,1736715038774,-500.0,9.799e-05,2]
[348683958,1736715038783,-500.0,9.799e-05,2]
[348683959,1736715038791,-674.53,9.799e-05,2]
[348683960,1736715038801,-500.0,9.799e-05,2]
[348683961,1736715038810,-500.0,9.799e-05,2]
[348683962,1736715038819,-500.0,9.799e-05,2]
[348683963,1736715038828,-635.75,9.799e-05,2]
[348683964,1736715038838,-500.0,9.799e-05,2]
[348683965,1736715038848,-1726.35,9.799e-05,2]
[348683966,1736715038858,-887.47,9.799e-05,2]
[348683967,1736715038868,-500.0,9.799e-05,2]
[348683968,1736715038877,-500.0,9.799e-05,2]
[348683969,1736715038888,-500.0,9.799e-05,2]
[348683970,1736715038898,-500.0,9.799e-05,2]
[348683971,1736715038907,-632.05,9.799e-05,2]
[348683972,1736715038916,-537.43,9.799e-05,2]
[348683973,1736715038925,-1240.15,9.799e-05,2]
[348683974,1736715038934,-500.0,9.799e-05,2]
[348683975,1736715038943,-500.0,9.799e-05,2]
[348683976,1736715038952,-500.0,9.799e-05,2]
[348683977,1736715038961,-2477.84,9.799e-05,2]
[348683978,1736715038971,-500.0,9.799e-05,2]
[348683979,1736715038980,-500.0,9.799e-05,2]
[348683980,1736715038990,-500.0,9.799e-05,2]
[348683981,1736715038999,-674.74,9.799e-05,2]
[348683982,1736715039008,-500.0,9.799e-05,2]
[348683983,1736715039017,-500.0,9.799e-05,2]
[348683984,1736715039027,-500.0,9.799e-05,2]
[348683985,1736715039036,-500.0,9.799e-05,2]
[348683986,1736715039045,-798.9,9.799e-05,2]
[348683987,1736715039054,-500.0,9.799e-05,2]
[348683988,1736715039063,-500.0,9.799e-05,2]
[348683989,1736715039072,-500.0,9.799e-05,2]
[348683990,1736715039081,-500.0,9.799e-05,2]
[348683991,1736715039090,-1272.16,9.799e-05,2]
[348683992,1736715039099,-500.0,9.799e-05,2]
[348683993,1736715039108,-500.0,9.799e-05,2]
[348683994,1736715039117,-500.0,9.799e-05,2]
[348683995,1736715039126,-500.0,9.799e-05,2]
[348683996,1736715039136,-500.0,9.799e-05,2]
[348683997,1736715039145,-500.0,9.799e-05,2]
[348683998,1736715039154,-2079.21,9.799e-05,2]
[348683999,1736715039163,-500.0,9.799e-05,2]
[348684000,1736715039172,-587.94,9.799e-05,2]
[348684001,1736715039182,-500.0,9.799e-05,2]
[348684002,1736715039191,-500.0,9.799e-05,2]
[348684003,1736715039199,-500.0,9.799e-05,2]
[348684004,1736715039208,-500.0,9.799e-05,2]
[348684005,1736715039218,-500.0,9.799e-05,2]
[348684006,1736715039227,-500.0,9.799e-05,2]
[348684007,1736715039237,-1105.49,9.799e-05,2]
[348684008,1736715039246,-500.0,9.799e-05,2]
[348684009,1736715039255,-500.0,9.799e-05,2]
[348684010,1736715039264,-500.0,9.799e-05,2]
[348684011,1736715039274,-500.0,9.799e-05,2]
[348684012,1736715039283,-500.0,9.799e-05,2]
[348684013,1736715039292,-500.0,9.799e-05,2]
[348684014,1736715039301,-500.0,9.799e-05,2]
[348684015,1736715039311,-500.0,9.799e-05,2]
[348684016,1736715039320,-500.0,9.799e-05,2]
[348684017,1736715039330,-500.0,9.799e-05,2]
[348684018,1736715039339,-538.17307005,9.799e-05,2]
[348684019,1736715039349,-671.15,9.799e-05,2]
[348684020,1736715039358,-500.0,9.799e-05,2]
[348684021,1736715039368,-500.0,9.799e-05,2]
[348684022,1736715039377,-500.0,9.799e-05,2]
[348684023,1736715039387,-500.0,9.799e-05,2]
[348684024,1736715039396,-500.0,9.799e-05,2]
[348684025,1736715039405,-500.0,9.799e-05,2]
[348684026,1736715039415,-728.37,9.799e-05,2]
[348684027,1736715039425,-500.0,9.799e-05,2]
[348684028,1736715039435,-500.0,9.799e-05,2]
[348684029,1736715039447,-500.0,9.799e-05,2]
[348684030,1736715039456,-500.0,9.799e-05,2]
[348684032,1736715039465,-502.00434583,9.799e-05,2]
[348684033,1736715039474,-500.0,9.799e-05,2]
[348684034,1736715039483,-500.0,9.799e-05,2]
[348684035,1736715039493,-500.0,9.799e-05,2]
[348684036,1736715039502,-500.0,9.799e-05,2]
[348684037,1736715039511,-954.38,9.799e-05,2]
[348684038,1736715039521,-500.0,9.799e-05,2]
[348684039,1736715039531,-651.49,9.799e-05,2]
[348684040,1736715039539,-1277.5,9.799e-05,2]
[348684041,1736715039549,-500.0,9.799e-05,2]
[348684042,1736715039558,-500.0,9.799e-05,2]
[348684043,1736715039567,-687.57,9.799e-05,2]
[348684044,1736715039575,-831.18,9.799e-05,2]
[348684045,1736715039584,-698.46,9.799e-05,2]
[348684046,1736715039593,-500.0,9.799e-05,2]
[348684047,1736715039602,-603.72,9.799e-05,2]
[348684048,1736715039611,-500.0,9.799e-05,2]
[348684049,1736715039620,-1808.23,9.799e-05,2]
[348684050,1736715039630,-500.0,9.799e-05,2]
[348684051,1736715039639,-500.0,9.799e-05,2]
[348684052,1736715039648,-500.0,9.799e-05,2]
[348684053,1736715039656,-566.25,9.799e-05,2]
[348684054,1736715039667,-500.0,9.799e-05,2]
[348684055,1736715039677,-500.0,9.799e-05,2]
[348684056,1736715039686,-748.25,9.799e-05,2]
[348684057,1736715039695,-500.0,9.799e-05,2]
[348684058,1736715039705,-500.0,9.799e-05,2]
[348684059,1736715039714,-2866190.70316152,9.8e-05,2]
[348684060,1736715039729,-7395.95158605,9.8e-05,2]
[348684061,1736715039752,-59016.04218225,9.8e-05,2]
[348684062,1736715039782,-9576.77188676,9.8e-05,2]
[348684063,1736715040060,-500.0,9.799e-05,2]
[348684064,1736715040071,-7500.0,9.8e-05,2]
[348684066,1736715040115,-6097.65826867,9.8e-05,2]
[348684069,1736715040127,-505.640814,9.8e-05,2]
[348684071,1736715040139,-2353.77167174,9.8e-05,2]
[348684097,1736715040367,-372.04657447,9.8e-05,2]
[348684099,1736715040380,-332.54659203,9.8e-05,2]
[348684127,1736715042497,-346.81285538,9.527e-05,2]
[348684128,1736715042507,-816.75,9.799e-05,2]
[348684129,1736715042516,-162.32747433,9.799e-05,2]
[348684130,1736715042526,-180265.86726251,9.8e-05,2]
[348684131,1736715042537,-852.061,9.899e-05,2]
[348684132,1736715042548,-158.36108303,9.9e-05,2]
[348684133,1736715042557,-158.36108296,9.9e-05,2]
[348684134,1736715042568,-158.36108296,9.9e-05,2]
[348684135,1736715042577,-158.36108296,9.9e-05,2]
[348684137,1736715042587,-158.36108296,9.9e-05,2]
[348684138,1736715042599,-158.36108296,9.9e-05,2]
[348684139,1736715042607,-158.36108296,9.9e-05,2]
[348684140,1736715042616,-476.88753783,9.907e-05,2]
[348684141,1736715042626,-656.02,9.917e-05,2]
[348684142,1736715042636,-500.0,9.936e-05,2]
[348684143,1736715042646,-420.0,9.946e-05,2]
[348684144,1736715042656,-940.9,9.996e-05,2]
[348684145,1736715042666,-1374.83,9.996e-05,2]
[348684146,1736715042675,-1553.64,9.996e-05,2]
[348684147,1736715042685,-1466.7,9.996e-05,2]
[348684148,1736715042694,-2147.19,9.996e-05,2]
[348684149,1736715042703,-3988.93,9.996e-05,2]
[348684150,1736715042712,-646.54,9.996e-05,2]
[348684151,1736715042722,-250.38758051,9.997e-05,2]
[348684152,1736715042731,-1071.02,9.997e-05,2]
[348684153,1736715042740,-906.73,9.997e-05,2]
[348684154,1736715042750,-765.22,9.997e-05,2]
[348684155,1736715042759,-904.42,9.997e-05,2]
[348684156,1736715042769,-1696.61,9.997e-05,2]
[348684157,1736715042778,-500.0,9.997e-05,2]
[348684158,1736715042787,-910.84,9.997e-05,2]
[348684159,1736715042796,-839.03,9.997e-05,2]
[348684160,1736715042806,-1171.2,9.997e-05,2]
[348684161,1736715042815,-1550.19,9.997e-05,2]
[348684162,1736715042824,-1125.7,9.997e-05,2]
[348684163,1736715042833,-1287.27,9.997e-05,2]
[348684164,1736715042842,-3108.37,9.997e-05,2]
[348684165,1736715042851,-749.7,9.997e-05,2]
[348684166,1736715042861,-1349.45,9.997e-05,2]
[348684167,1736715042870,-1000.0,9.997e-05,2]
[348684168,1736715042879,-1961.82,9.997e-05,2]
[348684169,1736715042888,-993.36,9.997e-05,2]
[348684170,1736715042897,-500.0,9.998e-05,2]
[348684171,1736715042906,-571.61,9.998e-05,2]
[348684172,1736715042915,-531.54,9.998e-05,2]
[348684173,1736715042924,-1291.45,9.998e-05,2]
[348684174,1736715042933,-3163.06,9.998e-05,2]
[348684175,1736715042942,-3072.55,9.998e-05,2]
[348684176,1736715042951,-500.0,9.998e-05,2]
[348684177,1736715042960,-1312.57,9.998e-05,2]
[348684178,1736715042969,-2350.2,9.998e-05,2]
[348684179,1736715042978,-502.31,9.999e-05,2]
[348684180,1736715042987,-500.0,9.999e-05,2]
[348684181,1736715042996,-500.0,9.999e-05,2]
[348684182,1736715043006,-500.0,9.999e-05,2]
[348684183,1736715043015,-500.0,9.999e-05,2]
[348684184,1736715043024,-735.7,9.999e-05,2]
[348684185,1736715043032,-500.0,9.999e-05,2]
[348684186,1736715043042,-520.26484272,9.999e-05,2]
[348684187,1736715043051,-500.0,9.999e-05,2]
[348684188,1736715043060,-500.0,9.999e-05,2]
[348684189,1736715043069,-500.0,9.999e-05,2]
[348684190,1736715043078,-500.0,9.999e-05,2]
[348684191,1736715043087,-552.04,9.999e-05,2]
[348684192,1736715043096,-500.0,9.999e-05,2]
[348684193,1736715043105,-500.0,9.999e-05,2]
[348684194,1736715043114,-500.0,9.999e-05,2]
[348684195,1736715043123,-500.0,9.999e-05,2]
[348684196,1736715043133,-500.0,9.999e-05,2]
[348684197,1736715043142,-563.27545707,9.999e-05,2]
[348684198,1736715043152,-500.0,9.999e-05,2]
[348684199,1736715043160,-500.0,9.999e-05,2]
[348684200,1736715043169,-500.0,9.999e-05,2]
[348684201,1736715043178,-282.00985379,9.999e-05,2]
[348684202,1736715043187,-500.0,9.999e-05,2]
[348684203,1736715043196,-500.0,9.999e-05,2]